[Event "EYCC Open-U12 2019"]
[Site "Bratislava"]
[Date "2019.08.07"]
[Round "6.34"]
[White "Stork, Christopher"]
[Black "Leal Prado, David Elias"]
[Result "1-0"]
[ECO "C11"]
[WhiteElo "1905"]
[BlackElo "1741"]
[Annotator "NA"]
[PlyCount "139"]
[EventDate "2019.08.02"]
[EventType "swiss"]
[EventCountry "SVK"]
[SourceTitle "playchess.com"]
[Source "ChessBase"]
[SourceQuality "1"]
[TimeControl "40/5400+30:1800+30"]

1. e4 {[%emt 0:00:00]} e6 {[%emt 0:00:00]} 2. d4 {[%emt 0:00:00]} d5 {[%emt 0:00:00]} 3. Nc3 {[%emt 0:00:00]} Nf6 {[%emt 0:00:00]} 4. e5 {[%emt 0:00:00]} Nfd7 {[%emt 0:00:11]} 5. f4 {[%emt 0:00:01]} c5 {[%emt 0:00:07]} 6. Nf3 {[%emt 0:00:06]} a6 {[%emt 0:00:07]} 7. Be3 {[%emt 0:00:41]} Nc6 {[%emt 0:00:09]} 8. Qd2 {[%emt 0:01:11]} b5 {[%emt 0:00:09]} 9. a3 {[%emt 0:00:12]} Bb7 {[%emt 0:00:20]} 10. Be2 {[%emt 0:01:16]} Be7 {[%emt 0:00:13]} 11. O-O {[%emt 0:00:19]} O-O {[%emt 0:00:06]} 12. dxc5 {[%emt 0:08:08]} Nxc5 {[%emt 0:00:25]} 13. Rad1 {[%emt 0:03:43]} Qc7 {[%emt 0:04:55]} 14. Nd4 {[%emt 0:01:58]} Rfd8 {[%emt 0:01:35]} 15. Nxc6 {[%emt 0:02:40]} Bxc6 {[%emt 0:05:06]} 16. Bd4 {[%emt 0:00:32]} Rd7 {[%emt 0:03:38]} 17. b4 {[%emt 0:05:40]} Ne4 {[%emt 0:03:00]} 18. Nxe4 {[%emt 0:00:50]} dxe4 {[%emt 0:00:11]} 19. Qe3 {[%emt 0:00:15]} Qb7 {[%emt 0:07:12]} 20. f5 {[%emt 0:03:04]} exf5 {[%emt 0:02:54]} 21. Qg3 {[%emt 0:01:30]} g6 {[%emt 0:06:49]} 22. e6 {[%emt 0:08:31]} Rdd8 {[%emt 0:07:39]} 23. exf7+ {[%emt 0:00:24]} Kxf7 {[%emt 0:00:07]} 24. Rxf5+ {[%emt 0:04:52]} Kg8 {[%emt 0:04:30]} 25. Qe5 {[%emt 0:02:25]} Rxd4 {[%emt 0:01:17]} 26. Qe6+ {[%emt 0:01:10]} Kh8 {[%emt 0:01:14]} 27. Rf7 {[%emt 0:00:21]} Rxd1+ {[%emt 0:01:06]} 28. Bxd1 Qa7+ {[%emt 0:06:03]} 29. Kf1 {[%emt 0:01:07]} Qd4 {[%emt 0:02:03]} 30. Qxe7 {[%emt 0:02:48]} Qxd1+ {[%emt 0:02:48]} 31. Kf2 {[%emt 0:00:04]} e3+ {[%emt 0:04:57]} 32. Kg3 {[%emt 0:00:39]} Qe1+ {[%emt 0:04:35]} 33. Kh3 {[%emt 0:02:53]} Bxg2+ {[%emt 0:00:30]} 34. Kxg2 {[%emt 0:00:14]} Qe2+ {[%emt 0:00:33]} 35. Kg3 {[%emt 0:00:19]} Qf2+ {[%emt 0:02:43]} 36. Rxf2 {[%emt 0:00:15]} exf2 {[%emt 0:00:08]} 37. Kxf2 {[%emt 0:00:10]} Kg8 {[%emt 0:00:15]} 38. Qe6+ {[%emt 0:00:24]} Kg7 {[%emt 0:00:23]} 39. Qe5+ {[%emt 0:00:35]} Kh6 {[%emt 0:00:41]} 40. Qd6 {[%emt 0:00:00]} Kg7 {[%emt 0:00:00]} 41. Qe7+ {[%emt 0:02:29]} Kh6 {[%emt 0:03:51]} 42. Ke3 {[%emt 0:00:13]} Rc8 {[%emt 0:00:41]} 43. Kd3 {[%emt 0:00:34]} Rc4 {[%emt 0:06:02]} 44. Qf6 {[%emt 0:01:09]} Rg4 {[%emt 0:02:01]} 45. Qxa6 {[%emt 0:00:42]} Rg5 {[%emt 0:00:17]} 46. Qd6 {[%emt 0:00:20]} Rf5 {[%emt 0:00:25]} 47. Qg3 {[%emt 0:00:41]} Kg7 {[%emt 0:02:04]} 48. c4 {[%emt 0:00:33]} bxc4+ {[%emt 0:01:07]} 49. Kxc4 {[%emt 0:00:09]} h5 {[%emt 0:00:15]} 50. b5 {[%emt 0:00:27]} g5 {[%emt 0:00:26]} 51. b6 {[%emt 0:00:14]} h4 {[%emt 0:01:47]} 52. Qc7+ {[%emt 0:00:18]} Kg6 {[%emt 0:00:29]} 53. b7 {[%emt 0:00:12]} Rf1 {[%emt 0:00:19]} 54. Qd6+ {[%emt 0:00:09]} Kh5 {[%emt 0:00:26]} 55. Qd3 {[%emt 0:00:52]} Rf8 {[%emt 0:00:49]} 56. Qe2+ {[%emt 0:00:47]} Kg6 {[%emt 0:00:53]} 57. Qe5 {[%emt 0:00:39]} Kf7 {[%emt 0:01:48]} 58. Qf5+ {[%emt 0:00:08]} Kg7 {[%emt 0:01:18]} 59. Qxf8+ {[%emt 0:00:04]} Kxf8 {[%emt 0:00:17]} 60. b8=Q+ {[%emt 0:00:07]} Ke7 {[%emt 0:00:27]} 61. Kd5 {[%emt 0:00:16]} g4 {[%emt 0:02:25]} 62. Qd6+ {[%emt 0:00:13]} Kf7 {[%emt 0:00:12]} 63. Qe6+ {[%emt 0:00:09]} Kg7 {[%emt 0:00:25]} 64. Ke5 {[%emt 0:00:25]} g3 {[%emt 0:00:15]} 65. hxg3 {[%emt 0:00:06]} hxg3 {[%emt 0:00:20]} 66. Qf6+ {[%emt 0:00:12]} Kg8 {[%emt 0:00:23]} 67. Ke6 {[%emt 0:00:35]} g2 {[%emt 0:00:16]} 68. Qg6+ {[%emt 0:00:08]} Kh8 {[%emt 0:00:19]} 69. Kf7 {[%emt 0:00:10]} g1=R {[%emt 0:00:15]} 70. Qh6# {[%emt 0:00:13]} 1-0

[Event "EYCC Open-U12 2019"]
[Site "Bratislava"]
[Date "2019.08.07"]
[Round "6.35"]
[White "Valiyev, Shahin"]
[Black "Snitsarenko, Igor"]
[Result "1-0"]
[ECO "B47"]
[WhiteElo "1830"]
[BlackElo "1481"]
[Annotator "NA"]
[PlyCount "99"]
[EventDate "2019.08.02"]
[EventType "swiss"]
[EventCountry "SVK"]
[SourceTitle "playchess.com"]
[Source "ChessBase"]
[SourceQuality "1"]
[TimeControl "40/5400+30:1800+30"]

1. e4 {[%emt 0:00:00]} c5 {[%emt 0:00:00]} 2. Nf3 {[%emt 0:00:00]} e6 {[%emt 0:00:00]} 3. d4 {[%emt 0:00:00]} cxd4 {[%emt 0:00:03]} 4. Nxd4 {[%emt 0:00:00]} Nc6 {[%emt 0:00:11]} 5. Nc3 {[%emt 0:00:15]} Qc7 {[%emt 0:00:07]} 6. g3 {[%emt 0:06:31]} a6 {[%emt 0:01:23]} 7. Bg2 {[%emt 0:05:11]} Nf6 {[%emt 0:02:00]} 8. O-O {[%emt 0:03:26]} Be7 {[%emt 0:00:31]} 9. Nxc6 {[%emt 0:19:11]} bxc6 {[%emt 0:04:57]} 10. b3 {[%emt 0:01:39]} O-O {[%emt 0:03:43]} 11. Bb2 {[%emt 0:00:18]} Bb7 {[%emt 0:01:45]} 12. Re1 {[%emt 0:04:18]} d5 {[%emt 0:02:47]} 13. e5 {[%emt 0:02:26]} Nd7 {[%emt 0:01:40]} 14. f4 {[%emt 0:00:30]} c5 {[%emt 0:08:23]} 15. Qe2 {[%emt 0:10:50]} Rac8 {[%emt 0:05:20]} 16. Bf3 {[%emt 0:04:06]} Nb6 {[%emt 0:08:03]} 17. Qg2 {[%emt 0:01:29]} Bc6 {[%emt 0:09:34]} 18. Ne2 {[%emt 0:05:39]} d4 {[%emt 0:04:19]} 19. Bxc6 {[%emt 0:02:18]} Qxc6 {[%emt 0:00:12]} 20. Qxc6 {[%emt 0:00:42]} Rxc6 {[%emt 0:00:04]} 21. Rad1 {[%emt 0:01:38]} Rd8 {[%emt 0:04:30]} 22. Kh1 {[%emt 0:05:53]} Rc7 {[%emt 0:04:16]} 23. a3 {[%emt 0:07:24]} Rcd7 {[%emt 0:08:30]} 24. Rd2 {[%emt 0:00:56]} Kf8 {[%emt 0:11:52]} 25. Red1 {[%emt 0:02:26]} Ke8 {[%emt 0:02:52]} 26. Kg2 {[%emt 0:01:14]} Nd5 {[%emt 0:00:28]} 27. Kf3 {[%emt 0:00:32]} f6 {[%emt 0:05:28]} 28. exf6 {[%emt 0:00:52]} Bxf6 {[%emt 0:00:11]} 29. Ba1 {[%emt 0:04:09]} Ne3 {[%emt 0:02:34]} 30. Re1 {[%emt 0:01:00]} Kf7 {[%emt 0:00:47]} 31. c3 {[%emt 0:03:03]} Nf5 {[%emt 0:01:23]} 32. cxd4 {[%emt 0:00:16]} cxd4 {[%emt 0:01:07]} 33. g4 {[%emt 0:00:16]} Bh4 {[%emt 0:01:12]} 34. Rc1 {[%emt 0:01:07]} d3 {[%emt 0:00:54]} 35. gxf5 {[%emt 0:00:13]} dxe2 {[%emt 0:00:08]} 36. fxe6+ {[%emt 0:00:02]} Kxe6 {[%emt 0:00:38]} 37. Rxe2+ {[%emt 0:00:08]} Kf7 {[%emt 0:00:07]} 38. Kg4 {[%emt 0:00:12]} Be7 {[%emt 0:00:23]} 39. b4 {[%emt 0:00:32]} Rd3 {[%emt 0:01:24]} 40. Rc7 {[%emt 0:00:00]} h5+ {[%emt 0:00:00]} 41. Kxh5 {[%emt 0:11:48]} Rh8+ {[%emt 0:03:06]} 42. Kg4 {[%emt 0:00:51]} Rh4+ {[%emt 0:00:39]} 43. Kf5 {[%emt 0:00:13]} g6+ {[%emt 0:00:43]} 44. Ke4 {[%emt 0:00:03]} Rxa3 {[%emt 0:00:54]} 45. Bb2 {[%emt 0:04:05]} Rb3 {[%emt 0:04:31]} 46. Kd5 {[%emt 0:01:44]} Rh5+ {[%emt 0:03:43]} 47. Kc6 {[%emt 0:00:36]} Rxb4 {[%emt 0:00:23]} 48. Rexe7+ {[%emt 0:00:09]} Kf8 {[%emt 0:00:22]} 49. Bg7+ {[%emt 0:00:12]} Kg8 {[%emt 0:00:18]} 50. Re8+ {[%emt 0:00:09]} 1-0

[Event "EYCC Open-U12 2019"]
[Site "Bratislava"]
[Date "2019.08.07"]
[Round "6.36"]
[White "Pingin, Artem"]
[Black "Aasen, Joakim"]
[Result "1-0"]
[ECO "A37"]
[WhiteElo "2155"]
[BlackElo "1718"]
[Annotator "NA"]
[PlyCount "85"]
[EventDate "2019.08.02"]
[EventType "swiss"]
[EventCountry "SVK"]
[SourceTitle "playchess.com"]
[Source "ChessBase"]
[SourceQuality "1"]
[TimeControl "40/5400+30:1800+30"]

1. c4 {[%emt 0:00:00]} c5 {[%emt 0:00:00]} 2. Nc3 {[%emt 0:00:02]} g6 {[%emt 0:00:04]} 3. g3 {[%emt 0:00:54]} Bg7 {[%emt 0:00:34]} 4. Bg2 {[%emt 0:00:05]} Nc6 {[%emt 0:00:14]} 5. Nf3 {[%emt 0:00:07]} e5 {[%emt 0:00:40]} 6. O-O {[%emt 0:01:32]} Nge7 {[%emt 0:00:33]} 7. d3 {[%emt 0:03:37]} O-O {[%emt 0:01:19]} 8. Ne1 {[%emt 0:02:47]} d6 {[%emt 0:02:08]} 9. Nc2 {[%emt 0:00:07]} Be6 {[%emt 0:02:14]} 10. Ne3 {[%emt 0:00:08]} Rb8 {[%emt 0:01:26]} 11. Ned5 {[%emt 0:03:03]} a6 {[%emt 0:01:49]} 12. a4 {[%emt 0:02:12]} f5 {[%emt 0:02:31]} 13. Bd2 {[%emt 0:01:13]} h6 {[%emt 0:01:49]} 14. Rb1 {[%emt 0:02:26]} Kh7 {[%emt 0:07:55]} 15. b4 {[%emt 0:17:27]} cxb4 {[%emt 0:14:36]} 16. Nxb4 {[%emt 0:01:11]} Nxb4 {[%emt 0:02:34]} 17. Rxb4 {[%emt 0:00:11]} d5 {[%emt 0:01:05]} 18. cxd5 {[%emt 0:06:06]} Nxd5 {[%emt 0:01:23]} 19. Nxd5 {[%emt 0:00:46]} Bxd5 {[%emt 0:00:40]} 20. Bxd5 {[%emt 0:01:33]} Qxd5 {[%emt 0:00:19]} 21. Qb3 {[%emt 0:00:07]} Qxb3 {[%emt 0:06:18]} 22. Rxb3 {[%emt 0:00:04]} Rfc8 {[%emt 0:00:49]} 23. Be3 {[%emt 0:07:35]} Rc2 {[%emt 0:05:07]} 24. Rfb1 {[%emt 0:11:12]} Rxe2 {[%emt 0:03:20]} 25. Rxb7 {[%emt 0:00:17]} Re1+ {[%emt 0:15:10]} 26. Rxe1 {[%emt 0:00:03]} Rxb7 {[%emt 0:00:14]} 27. Rc1 {[%emt 0:12:56]} Bf8 {[%emt 0:18:55]} 28. a5 {[%emt 0:07:34]} Rb5 {[%emt 0:02:24]} 29. Rc7+ {[%emt 0:00:06]} Kh8 {[%emt 0:01:09]} 30. Bd2 {[%emt 0:01:09]} Rc5 {[%emt 0:01:04]} 31. Rb7 {[%emt 0:01:39]} Rc6 {[%emt 0:00:36]} 32. Rb6 {[%emt 0:02:47]} Rxb6 {[%emt 0:00:16]} 33. axb6 {[%emt 0:00:02]} Kg7 {[%emt 0:01:03]} 34. b7 {[%emt 0:00:30]} Bd6 {[%emt 0:00:05]} 35. d4 {[%emt 0:00:05]} g5 {[%emt 0:02:13]} 36. dxe5 {[%emt 0:00:10]} Bb8 {[%emt 0:00:02]} 37. Bb4 {[%emt 0:00:28]} Bxe5 {[%emt 0:02:31]} 38. Bc3 {[%emt 0:00:05]} Bxc3 {[%emt 0:00:21]} 39. b8=Q {[%emt 0:00:04]} Kg6 {[%emt 0:00:52]} 40. Qg8+ {[%emt 0:00:00]} Kh5 {[%emt 0:00:00]} 41. Qf7+ {[%emt 0:00:34]} Kg4 {[%emt 0:00:34]} 42. Kg2 {[%emt 0:00:07]} h5 {[%emt 0:00:41]} 43. h3# {[%emt 0:00:03]} 1-0

[Event "EYCC Open-U12 2019"]
[Site "Bratislava"]
[Date "2019.08.07"]
[Round "6.37"]
[White "Georgiev, Konstantin"]
[Black "Gregoric, Andraz"]
[Result "0-1"]
[ECO "A05"]
[WhiteElo "1919"]
[BlackElo "1911"]
[Annotator "NA"]
[PlyCount "76"]
[EventDate "2019.08.02"]
[EventType "swiss"]
[EventCountry "SVK"]
[SourceTitle "playchess.com"]
[Source "ChessBase"]
[SourceQuality "1"]
[TimeControl "40/5400+30:1800+30"]

1. Nf3 {[%emt 0:00:00]} Nf6 {[%emt 0:00:00]} 2. g3 {[%emt 0:00:00]} c5 {[%emt 0:02:10]} 3. c4 {[%emt 0:00:10]} g6 {[%emt 0:00:56]} 4. b3 {[%emt 0:00:19]} Nc6 {[%emt 0:00:28]} 5. Bb2 {[%emt 0:00:08]} Bg7 {[%emt 0:00:09]} 6. Bg2 {[%emt 0:00:04]} O-O {[%emt 0:00:47]} 7. O-O {[%emt 0:00:10]} d6 {[%emt 0:11:54]} 8. d3 {[%emt 0:01:02]} e5 {[%emt 0:01:48]} 9. Nbd2 {[%emt 0:00:12]} Nh5 {[%emt 0:10:36]} 10. e3 {[%emt 0:05:37]} f5 {[%emt 0:05:44]} 11. Qe2 {[%emt 0:01:51]} Qe7 {[%emt 0:04:50]} 12. Ne1 {[%emt 0:11:42]} Bd7 {[%emt 0:02:58]} 13. Nc2 {[%emt 0:03:06]} Rae8 {[%emt 0:02:22]} 14. Rae1 {[%emt 0:01:34]} Nd8 {[%emt 0:14:30]} 15. Qd1 {[%emt 0:08:50]} Bc6 {[%emt 0:01:54]} 16. Bxc6 {[%emt 0:03:29]} Nxc6 {[%emt 0:04:45]} 17. d4 {[%emt 0:15:28]} Nd8 {[%emt 0:08:19]} 18. b4 {[%emt 0:01:05]} e4 {[%emt 0:03:56]} 19. bxc5 {[%emt 0:01:22]} dxc5 {[%emt 0:00:05]} 20. Ba3 {[%emt 0:00:22]} b6 {[%emt 0:01:29]} 21. Nb3 {[%emt 0:03:02]} Qg5 {[%emt 0:07:47]} 22. dxc5 {[%emt 0:01:14]} Bc3 {[%emt 0:00:31]} 23. Qd5+ {[%emt 0:00:09]} Rf7 {[%emt 0:00:12]} 24. Rd1 {[%emt 0:00:23]} Nf6 {[%emt 0:00:37]} 25. Qd6 {[%emt 0:05:31]} Be5 {[%emt 0:02:25]} 26. Qd2 {[%emt 0:01:01]} Ne6 {[%emt 0:00:39]} 27. Ncd4 {[%emt 0:00:38]} Bxd4 {[%emt 0:00:55]} 28. exd4 {[%emt 0:01:46]} Qh5 {[%emt 0:01:13]} 29. h4 {[%emt 0:05:43]} g5 30. d5 {[%emt 0:00:37]} Nf4 {[%emt 0:01:32]} 31. Nd4 {[%emt 0:06:09]} Nh3+ {[%emt 0:02:03]} 32. Kh1 {[%emt 0:03:13]} gxh4 {[%emt 0:00:56]} 33. Kg2 {[%emt 0:01:19]} Rg7 {[%emt 0:01:29]} 34. Rh1 {[%emt 0:01:54]} e3 {[%emt 0:00:16]} 35. Qc2 {[%emt 0:02:14]} Nf4+ {[%emt 0:00:21]} 36. Kf1 {[%emt 0:00:12]} e2+ {[%emt 0:00:42]} 37. Nxe2 {[%emt 0:00:03]} Qf3 {[%emt 0:01:15]} 38. Rh2 {[%emt 0:00:33]} Nxe2 {[%emt 0:01:09]} 0-1

[Event "EYCC Open-U12 2019"]
[Site "Bratislava"]
[Date "2019.08.07"]
[Round "6.38"]
[White "Jetzl, Julian"]
[Black "Cnejev, Vladimir-Alexandru"]
[Result "0-1"]
[ECO "D35"]
[WhiteElo "1719"]
[BlackElo "1907"]
[Annotator "NA"]
[PlyCount "74"]
[EventDate "2019.08.02"]
[EventType "swiss"]
[EventCountry "SVK"]
[SourceTitle "playchess.com"]
[Source "ChessBase"]
[SourceQuality "1"]
[TimeControl "40/5400+30:1800+30"]

1. d4 {[%emt 0:00:00]} d5 {[%emt 0:00:00]} 2. c4 {[%emt 0:00:06]} e6 {[%emt 0:00:00]} 3. Nc3 {[%emt 0:00:12]} Nf6 {[%emt 0:00:00]} 4. cxd5 {[%emt 0:00:25]} exd5 {[%emt 0:00:00]} 5. Bg5 {[%emt 0:00:12]} c6 {[%emt 0:00:00]} 6. e3 {[%emt 0:00:17]} Bf5 {[%emt 0:00:00]} 7. Bd3 {[%emt 0:00:57]} Bxd3 {[%emt 0:00:00]} 8. Qxd3 {[%emt 0:00:10]} Nbd7 {[%emt 0:00:00]} 9. Nge2 {[%emt 0:00:12]} Be7 {[%emt 0:00:05]} 10. O-O {[%emt 0:00:15]} O-O {[%emt 0:00:03]} 11. Rad1 {[%emt 0:02:06]} h6 {[%emt 0:00:11]} 12. Bh4 {[%emt 0:01:00]} Re8 {[%emt 0:01:56]} 13. f3 {[%emt 0:01:04]} a5 {[%emt 0:01:33]} 14. Bg3 {[%emt 0:12:49]} Nb6 {[%emt 0:04:25]} 15. b3 {[%emt 0:15:03]} a4 {[%emt 0:00:26]} 16. bxa4 {[%emt 0:05:47]} Nxa4 {[%emt 0:01:02]} 17. Nxa4 {[%emt 0:00:34]} Rxa4 {[%emt 0:00:01]} 18. Rb1 {[%emt 0:09:45]} b5 {[%emt 0:05:40]} 19. Nc3 {[%emt 0:02:02]} Ra3 {[%emt 0:01:44]} 20. Rb3 {[%emt 0:03:19]} Qa5 {[%emt 0:00:56]} 21. Rc1 {[%emt 0:05:48]} Qa8 {[%emt 0:39:49]} 22. Be1 {[%emt 0:07:15]} Bf8 {[%emt 0:04:08]} 23. Bd2 {[%emt 0:04:55]} Nd7 {[%emt 0:10:18]} 24. Rcb1 {[%emt 0:06:27]} Nb6 {[%emt 0:06:12]} 25. Rxa3 {[%emt 0:01:07]} Qxa3 {[%emt 0:01:59]} 26. Rb3 {[%emt 0:00:27]} Qa8 {[%emt 0:02:32]} 27. Bc1 {[%emt 0:09:16]} Nc4 {[%emt 0:02:12]} 28. Qe2 {[%emt 0:03:42]} Qa7 {[%emt 0:01:00]} 29. Qf2 {[%emt 0:01:24]} g6 {[%emt 0:02:05]} 30. Nb1 {[%emt 0:01:31]} Bg7 {[%emt 0:01:43]} 31. Na3 {[%emt 0:01:04]} Qa5 {[%emt 0:05:25]} 32. Nxc4 {[%emt 0:01:31]} dxc4 {[%emt 0:00:27]} 33. Ra3 {[%emt 0:01:25]} Qb6 {[%emt 0:00:27]} 34. Rc3 {[%emt 0:00:25]} c5 {[%emt 0:00:29]} 35. dxc5 {[%emt 0:00:42]} Qd8 {[%emt 0:07:11]} 36. Ra3 {[%emt 0:02:07]} b4 {[%emt 0:00:09]} 37. Ra4 {[%emt 0:00:18]} Qa8 0-1

[Event "EYCC Open-U12 2019"]
[Site "Bratislava"]
[Date "2019.08.07"]
[Round "6.39"]
[White "Kluehs, Gustaf"]
[Black "Skreko, Igor"]
[Result "1-0"]
[ECO "A37"]
[WhiteElo "1811"]
[BlackElo "1688"]
[Annotator "NA"]
[PlyCount "55"]
[EventDate "2019.08.02"]
[EventType "swiss"]
[EventCountry "SVK"]
[SourceTitle "playchess.com"]
[Source "ChessBase"]
[SourceQuality "1"]
[TimeControl "40/5400+30:1800+30"]

1. Nf3 {[%emt 0:00:00]} c5 {[%emt 0:00:00]} 2. g3 {[%emt 0:00:00]} g6 {[%emt 0:00:00]} 3. Bg2 {[%emt 0:00:00]} Bg7 {[%emt 0:00:00]} 4. c4 {[%emt 0:00:00]} Nc6 {[%emt 0:00:00]} 5. Nc3 {[%emt 0:00:13]} e5 {[%emt 0:00:00]} 6. O-O {[%emt 0:00:18]} Nge7 {[%emt 0:00:00]} 7. d3 {[%emt 0:00:17]} O-O {[%emt 0:00:20]} 8. Rb1 {[%emt 0:01:07]} d6 {[%emt 0:00:29]} 9. a3 {[%emt 0:00:22]} Be6 {[%emt 0:02:50]} 10. b4 {[%emt 0:02:05]} Rb8 {[%emt 0:03:50]} 11. Bd2 {[%emt 0:03:29]} b6 {[%emt 0:03:11]} 12. Ne1 {[%emt 0:04:22]} Qd7 {[%emt 0:03:52]} 13. Nd5 {[%emt 0:02:58]} Bh3 {[%emt 0:06:33]} 14. b5 {[%emt 0:01:58]} Bxg2 {[%emt 0:00:37]} 15. bxc6 {[%emt 0:00:06]} Qh3 {[%emt 0:02:39]} 16. Nxe7+ {[%emt 0:00:06]} Kh8 {[%emt 0:00:04]} 17. Nxg2 {[%emt 0:00:03]} Rbe8 {[%emt 0:00:21]} 18. Nd5 {[%emt 0:00:16]} f5 {[%emt 0:00:26]} 19. f4 {[%emt 0:00:55]} e4 {[%emt 0:00:37]} 20. Bc3 {[%emt 0:00:33]} exd3 {[%emt 0:00:48]} 21. Bxg7+ {[%emt 0:00:08]} Kxg7 {[%emt 0:00:06]} 22. exd3 {[%emt 0:00:03]} h5 {[%emt 0:01:55]} 23. Re1 {[%emt 0:00:50]} h4 {[%emt 0:01:08]} 24. Qf3 {[%emt 0:00:00]} hxg3 {[%emt 0:00:25]} 25. Qxg3 {[%emt 0:00:00]} Qh5 {[%emt 0:00:26]} 26. c7 {[%emt 0:00:31]} Rh8 {[%emt 0:00:49]} 27. Rxe8 {[%emt 0:00:14]} Rxe8 {[%emt 0:00:04]} 28. Re1 {[%emt 0:00:06]} 1-0

[Event "EYCC Open-U12 2019"]
[Site "Bratislava"]
[Date "2019.08.07"]
[Round "6.40"]
[White "Lavrencic, Matic"]
[Black "Magold, Filip"]
[Result "0-1"]
[ECO "B52"]
[WhiteElo "1564"]
[BlackElo "1865"]
[Annotator "NA"]
[PlyCount "68"]
[EventDate "2019.08.02"]
[EventType "swiss"]
[EventCountry "SVK"]
[SourceTitle "playchess.com"]
[Source "ChessBase"]
[SourceQuality "1"]
[TimeControl "40/5400+30:1800+30"]

1. e4 {[%emt 0:00:00]} c5 {[%emt 0:00:00]} 2. Nf3 {[%emt 0:00:00]} d6 {[%emt 0:00:00]} 3. Bb5+ {[%emt 0:00:03]} Bd7 {[%emt 0:00:00]} 4. Bxd7+ {[%emt 0:00:09]} Qxd7 {[%emt 0:00:00]} 5. c4 {[%emt 0:00:17]} Nc6 {[%emt 0:00:27]} 6. O-O {[%emt 0:00:29]} g6 {[%emt 0:00:24]} 7. d4 {[%emt 0:00:12]} cxd4 {[%emt 0:00:12]} 8. Nxd4 {[%emt 0:00:08]} Bg7 {[%emt 0:00:14]} 9. Be3 {[%emt 0:00:16]} Nf6 {[%emt 0:00:35]} 10. f3 {[%emt 0:00:19]} O-O {[%emt 0:00:59]} 11. Nc3 {[%emt 0:00:09]} Rac8 {[%emt 0:01:20]} 12. b3 {[%emt 0:01:42]} a6 {[%emt 0:01:32]} 13. Qd3 {[%emt 0:00:51]} Ne5 {[%emt 0:01:36]} 14. Qe2 {[%emt 0:00:13]} Qc7 {[%emt 0:00:48]} 15. Rac1 {[%emt 0:01:29]} Rfd8 {[%emt 0:02:09]} 16. Rfd1 {[%emt 0:08:00]} Qa5 {[%emt 0:03:02]} 17. Qd2 {[%emt 0:07:10]} Nc6 {[%emt 0:06:29]} 18. Qf2 {[%emt 0:09:04]} Re8 {[%emt 0:06:20]} 19. Na4 {[%emt 0:11:17]} Nd7 {[%emt 0:17:18]} 20. Nxc6 {[%emt 0:08:07]} Rxc6 {[%emt 0:02:07]} 21. Rd5 {[%emt 0:08:32]} Qc7 {[%emt 0:00:25]} 22. Rcd1 {[%emt 0:11:51]} Nf6 {[%emt 0:15:53]} 23. R5d2 {[%emt 0:00:19]} b5 {[%emt 0:00:53]} 24. Nb2 {[%emt 0:06:34]} Nd7 {[%emt 0:04:55]} 25. cxb5 {[%emt 0:04:37]} axb5 {[%emt 0:00:01]} 26. Nd3 {[%emt 0:00:45]} Bc3 {[%emt 0:13:42]} 27. Re2 {[%emt 0:01:13]} Ne5 {[%emt 0:01:59]} 28. Nf4 {[%emt 0:00:18]} e6 {[%emt 0:00:52]} 29. Bd4 {[%emt 0:00:48]} Bb4 {[%emt 0:03:12]} 30. Qh4 {[%emt 0:02:14]} Rc1 {[%emt 0:00:49]} 31. Rxc1 {[%emt 0:01:21]} Qxc1+ {[%emt 0:00:01]} 32. Kf2 {[%emt 0:00:09]} Qxf4 {[%emt 0:00:31]} 33. Qxf4 {[%emt 0:00:20]} Nd3+ {[%emt 0:00:03]} 34. Ke3 {[%emt 0:00:06]} Nxf4 0-1

[Event "EYCC Open-U12 2019"]
[Site "Bratislava"]
[Date "2019.08.07"]
[Round "6.41"]
[White "Nemsadze, Daviti"]
[Black "Baturina, Marin"]
[Result "1-0"]
[ECO "E05"]
[WhiteElo "1794"]
[BlackElo "1573"]
[Annotator "NA"]
[PlyCount "65"]
[EventDate "2019.08.02"]
[EventType "swiss"]
[EventCountry "SVK"]
[SourceTitle "playchess.com"]
[Source "ChessBase"]
[SourceQuality "1"]
[TimeControl "40/5400+30:1800+30"]

1. d4 {[%emt 0:00:00]} d5 {[%emt 0:00:00]} 2. c4 {[%emt 0:00:00]} e6 {[%emt 0:00:00]} 3. Nf3 {[%emt 0:00:00]} Nf6 {[%emt 0:00:31]} 4. g3 {[%emt 0:00:04]} Be7 {[%emt 0:00:54]} 5. Bg2 {[%emt 0:00:04]} dxc4 {[%emt 0:01:26]} 6. O-O {[%emt 0:01:23]} O-O {[%emt 0:02:07]} 7. Nbd2 {[%emt 0:01:08]} c5 {[%emt 0:09:43]} 8. Nxc4 {[%emt 0:02:33]} Nc6 {[%emt 0:08:10]} 9. dxc5 {[%emt 0:01:08]} Bxc5 {[%emt 0:03:39]} 10. Bg5 {[%emt 0:00:20]} Be7 {[%emt 0:04:21]} 11. Qb3 {[%emt 0:00:24]} Nd5 {[%emt 0:05:06]} 12. Bd2 {[%emt 0:03:01]} a6 {[%emt 0:05:36]} 13. e4 {[%emt 0:00:37]} Nc7 {[%emt 0:07:02]} 14. Nb6 {[%emt 0:00:32]} Rb8 {[%emt 0:00:24]} 15. Bf4 {[%emt 0:01:07]} Bc5 {[%emt 0:04:00]} 16. Na4 {[%emt 0:00:38]} Ba7 17. Rfd1 {[%emt 0:01:23]} Bd7 {[%emt 0:08:19]} 18. Qd3 {[%emt 0:05:16]} e5 {[%emt 0:07:39]} 19. Qxd7 {[%emt 0:07:34]} exf4 {[%emt 0:01:13]} 20. gxf4 Qxd7 {[%emt 0:03:40]} 21. Rxd7 {[%emt 0:00:57]} Ne6 {[%emt 0:00:43]} 22. f5 {[%emt 0:00:27]} Nf4 {[%emt 0:01:25]} 23. Rad1 {[%emt 0:00:51]} Rfe8 {[%emt 0:01:35]} 24. Nc3 {[%emt 0:00:44]} Nb4 {[%emt 0:03:36]} 25. Bf1 {[%emt 0:02:54]} g6 {[%emt 0:11:58]} 26. Bc4 {[%emt 0:03:28]} Rf8 {[%emt 0:01:47]} 27. Ng5 {[%emt 0:00:36]} gxf5 {[%emt 0:03:53]} 28. Nxf7 {[%emt 0:00:36]} Kg7 {[%emt 0:00:10]} 29. R1d6 {[%emt 0:00:32]} Nh3+ {[%emt 0:02:15]} 30. Kg2 {[%emt 0:00:08]} Nf4+ {[%emt 0:01:03]} 31. Kf1 {[%emt 0:00:15]} Ng6 {[%emt 0:00:46]} 32. exf5 {[%emt 0:00:28]} Nh4 {[%emt 0:00:38]} 33. Ng5+ {[%emt 0:00:04] Ra8} 1-0